[Event "*** Titled Tuesday Blitz"]
[Site "Chess.com"]
[Date "2020.05.12"]
[Round "6"]
[White "j2806"]
[Black "Gromes7"]
[Result "0-1"]
[WhiteElo "1968"]
[BlackElo "2113"]
[TimeControl "180+1"]
[EndTime "11:06:55 PDT"]
[Termination "Gromes7 won by checkmate"]

1. e4 {[%clk 0:03:00.9]} 1... c5 {[%clk 0:02:59.9]} 2. Nf3 {[%clk 0:03:00.4]}
2... d6 {[%clk 0:03:00]} 3. d4 {[%clk 0:03:00.9]} 3... cxd4 {[%clk 0:03:00.1]}
4. Nxd4 {[%clk 0:03:01.4]} 4... Nf6 {[%clk 0:03:00.7]} 5. Nc3 {[%clk 0:03:00.7]}
5... Nc6 {[%clk 0:03:01.1]} 6. Be3 {[%clk 0:03:00.6]} 6... Ng4 {[%clk
0:03:00.7]} 7. Bc1 {[%clk 0:02:59.4]} 7... Qb6 {[%clk 0:02:59.7]} 8. Bb5 {[%clk
0:02:33.8]} 8... e5 {[%clk 0:02:57.8]} 9. Nd5 {[%clk 0:02:08.6]} 9... Qxd4
{[%clk 0:02:53.7]} 10. Qxd4 {[%clk 0:02:04.4]} 10... exd4 {[%clk 0:02:53.8]} 11.
Nc7+ {[%clk 0:02:03.6]} 11... Kd8 {[%clk 0:02:53.6]} 12. Nxa8 {[%clk 0:02:02.9]}
12... Be7 {[%clk 0:02:24.3]} 13. h3 {[%clk 0:01:57.6]} 13... Nf6 {[%clk
0:02:15.1]} 14. Bd3 {[%clk 0:01:56.2]} 14... Nb4 {[%clk 0:01:57.2]} 15. Bd2
{[%clk 0:01:48.8]} 15... Nxd3+ {[%clk 0:01:56.6]} 16. cxd3 {[%clk 0:01:48.9]}
16... Bd7 {[%clk 0:01:53.2]} 17. Rc1 {[%clk 0:01:43.6]} 17... Bc6 {[%clk
0:01:50.7]} 18. Nb6 {[%clk 0:01:19.8]} 18... axb6 {[%clk 0:01:49.8]} 19. Ke2
{[%clk 0:01:18.3]} 19... Nd7 {[%clk 0:01:27.7]} 20. f4 {[%clk 0:01:15.9]} 20...
f5 {[%clk 0:01:18.9]} 21. exf5 {[%clk 0:01:13.7]} 21... Re8 {[%clk 0:01:15.5]}
22. Kf2 {[%clk 0:01:12.4]} 22... Nc5 {[%clk 0:01:14.9]} 23. Rc2 {[%clk
0:01:01.2]} 23... Nxd3+ {[%clk 0:01:11.5]} 24. Kg3 {[%clk 0:00:58.4]} 24... h5
{[%clk 0:00:46.5]} 25. h4 {[%clk 0:00:57.1]} 25... Bf6 {[%clk 0:00:42]} 26. b4
{[%clk 0:00:53.1]} 26... Re2 {[%clk 0:00:39.8]} 27. Rd1 {[%clk 0:00:50.5]} 27...
Kd7 {[%clk 0:00:31.8]} 28. Rc4 {[%clk 0:00:49.3]} 28... Bb5 {[%clk 0:00:28.8]}
29. Rc2 {[%clk 0:00:48.6]} 29... Nxb4 {[%clk 0:00:23.8]} 30. Rb2 {[%clk
0:00:42.8]} 30... Ba4 {[%clk 0:00:23.3]} 31. Re1 {[%clk 0:00:38.1]} 31... Rxe1
{[%clk 0:00:23]} 32. Bxe1 {[%clk 0:00:38.1]} 32... Nd3 {[%clk 0:00:23.4]} 33.
Re2 {[%clk 0:00:36.8]} 33... Nxe1 {[%clk 0:00:23.6]} 34. Rxe1 {[%clk 0:00:37]}
34... d3 {[%clk 0:00:22.4]} 35. Kf3 {[%clk 0:00:35]} 35... d2 {[%clk 0:00:21.9]}
36. Rf1 {[%clk 0:00:29.4]} 36... d1=Q+ {[%clk 0:00:21.3]} 37. Rxd1 {[%clk
0:00:29.7]} 37... Bxd1+ {[%clk 0:00:22]} 38. Kf2 {[%clk 0:00:30.5]} 38... Bd4+
{[%clk 0:00:21.7]} 39. Kg3 {[%clk 0:00:29.1]} 39... Bc2 {[%clk 0:00:20.4]} 40.
Kh2 {[%clk 0:00:29]} 40... Bxf5 {[%clk 0:00:20.4]} 41. Kg3 {[%clk 0:00:29.4]}
41... Be6 {[%clk 0:00:19.7]} 42. Kf3 {[%clk 0:00:30.3]} 42... Bxa2 {[%clk
0:00:19.1]} 43. Ke2 {[%clk 0:00:30.3]} 43... Bc4+ {[%clk 0:00:19.1]} 44. Kf3
{[%clk 0:00:30]} 44... b5 {[%clk 0:00:19.8]} 45. Ke4 {[%clk 0:00:30.2]} 45... b4
{[%clk 0:00:20.7]} 46. Kxd4 {[%clk 0:00:30.5]} 46... Be6 {[%clk 0:00:20.2]} 47.
Kd3 {[%clk 0:00:30.3]} 47... b3 {[%clk 0:00:19.6]} 48. Kd2 {[%clk 0:00:29.2]}
48... Kc6 {[%clk 0:00:19.8]} 49. Kc3 {[%clk 0:00:29.5]} 49... Bf7 {[%clk
0:00:18.8]} 50. Kb2 {[%clk 0:00:30.4]} 50... Kd5 {[%clk 0:00:18.6]} 51. Kc3
{[%clk 0:00:31.3]} 51... Ke4 {[%clk 0:00:18.9]} 52. Kb2 {[%clk 0:00:31.4]} 52...
Kxf4 {[%clk 0:00:19.3]} 53. Kc3 {[%clk 0:00:32.3]} 53... Kg3 {[%clk 0:00:19.7]}
54. Kb2 {[%clk 0:00:33.2]} 54... Kxg2 {[%clk 0:00:20.3]} 55. Kc3 {[%clk
0:00:34.1]} 55... Kg3 {[%clk 0:00:21.2]} 56. Kb2 {[%clk 0:00:35]} 56... Kxh4
{[%clk 0:00:22.1]} 57. Kc3 {[%clk 0:00:35.8]} 57... Kg3 {[%clk 0:00:23]} 58. Kb2
{[%clk 0:00:36.7]} 58... h4 {[%clk 0:00:23.9]} 59. Kc3 {[%clk 0:00:37.1]} 59...
h3 {[%clk 0:00:24.8]} 60. Kb2 {[%clk 0:00:37.9]} 60... h2 {[%clk 0:00:25.7]} 61.
Ka3 {[%clk 0:00:38.8]} 61... h1=Q {[%clk 0:00:25.9]} 62. Kb2 {[%clk 0:00:39.7]}
62... Qg2+ {[%clk 0:00:25.8]} 63. Ka3 {[%clk 0:00:39.9]} 63... Qa2+ {[%clk
0:00:25.9]} 64. Kb4 {[%clk 0:00:40]} 64... Qd2+ {[%clk 0:00:24.8]} 65. Ka3
{[%clk 0:00:39.7]} 65... Qa5+ {[%clk 0:00:24.8]} 66. Kb2 {[%clk 0:00:39.7]}
66... Qa2+ {[%clk 0:00:24.9]} 67. Kc3 {[%clk 0:00:40.2]} 67... b2 {[%clk
0:00:24.2]} 68. Kc2 {[%clk 0:00:40.2]} 68... b1=Q+ {[%clk 0:00:23.7]} 69. Kc3
{[%clk 0:00:41.1]} 69... Qab2# {[%clk 0:00:21.3]} 0-1

[Event "*** Titled Tuesday Blitz"]
[Site "Chess.com"]
[Date "2020.05.12"]
[Round "6"]
[White "stanyga"]
[Black "PelinGorki"]
[Result "0-1"]
[WhiteElo "2634"]
[BlackElo "2484"]
[TimeControl "180+1"]
[EndTime "11:06:57 PDT"]
[Termination "PelinGorki won by resignation"]

1. e4 {[%clk 0:02:58.4]} 1... d6 {[%clk 0:02:58.1]} 2. d4 {[%clk 0:02:57.6]}
2... Nf6 {[%clk 0:02:58.7]} 3. Nc3 {[%clk 0:02:57.8]} 3... c6 {[%clk 0:02:59.3]}
4. Nf3 {[%clk 0:02:53.3]} 4... Bg4 {[%clk 0:02:58.8]} 5. h3 {[%clk 0:02:52.6]}
5... Bh5 {[%clk 0:02:59]} 6. Be2 {[%clk 0:02:48.7]} 6... e6 {[%clk 0:02:59]} 7.
O-O {[%clk 0:02:42.8]} 7... Be7 {[%clk 0:02:59.3]} 8. Bf4 {[%clk 0:02:27.2]}
8... O-O {[%clk 0:02:58.2]} 9. Bh2 {[%clk 0:02:17.7]} 9... d5 {[%clk 0:02:57.8]}
10. e5 {[%clk 0:02:13.8]} 10... Nfd7 {[%clk 0:02:58]} 11. Re1 {[%clk 0:02:00.1]}
11... c5 {[%clk 0:02:57.7]} 12. dxc5 {[%clk 0:01:40.7]} 12... Bxc5 {[%clk
0:02:56.5]} 13. Na4 {[%clk 0:01:15.8]} 13... Bxf3 {[%clk 0:02:55]} 14. Bxf3
{[%clk 0:01:12.5]} 14... Bxf2+ {[%clk 0:02:55.4]} 15. Kxf2 {[%clk 0:01:11.6]}
15... Qh4+ {[%clk 0:02:55.9]} 16. Kg1 {[%clk 0:01:04.8]} 16... Qxa4 {[%clk
0:02:56.8]} 17. Kh1 {[%clk 0:01:01.3]} 17... Nc6 {[%clk 0:02:56.6]} 18. Qd2
{[%clk 0:00:56.2]} 18... Rac8 {[%clk 0:02:34.1]} 19. c3 {[%clk 0:00:55.8]} 19...
Kh8 {[%clk 0:02:19.5]} 20. Bd1 {[%clk 0:00:55.3]} 20... Qh4 {[%clk 0:02:15.2]}
21. Bc2 {[%clk 0:00:51.9]} 21... Qh5 {[%clk 0:02:07.1]} 22. Bf4 {[%clk
0:00:46.6]} 22... Ndxe5 {[%clk 0:01:20.5]} 23. Bd1 {[%clk 0:00:44.9]} 23... Qf5
{[%clk 0:01:18.4]} 24. Bc2 {[%clk 0:00:42.6]} 24... Nc4 {[%clk 0:00:53.5]} 25.
Qc1 {[%clk 0:00:30.7]} 25... Qh5 {[%clk 0:00:49.6]} 26. b3 {[%clk 0:00:29.9]}
26... Nb6 {[%clk 0:00:48.2]} 27. Kh2 {[%clk 0:00:15.7]} 27... e5 {[%clk
0:00:42.6]} 28. g4 {[%clk 0:00:13.1]} 28... Qh4 {[%clk 0:00:36.4]} 29. Bg3
{[%clk 0:00:11]} 29... Qe7 {[%clk 0:00:35.5]} 30. Qe3 {[%clk 0:00:09.9]} 30...
f6 {[%clk 0:00:34.6]} 31. Rad1 {[%clk 0:00:09.2]} 31... Qf7 {[%clk 0:00:20.5]}
32. Qd3 {[%clk 0:00:06.2]} 32... e4 {[%clk 0:00:16.8]} 33. Qe3 {[%clk
0:00:06.3]} 33... Ne5 {[%clk 0:00:14.8]} 34. c4 {[%clk 0:00:05.1]} 34... Nf3+
{[%clk 0:00:14.9]} 35. Kg2 {[%clk 0:00:04.9]} 35... Nxe1+ {[%clk 0:00:15.4]} 36.
Rxe1 {[%clk 0:00:05.8]} 36... Rfe8 {[%clk 0:00:12.7]} 37. c5 {[%clk 0:00:05]}
37... Nd7 {[%clk 0:00:12.9]} 38. b4 {[%clk 0:00:05.9]} 38... b6 {[%clk
0:00:12.6]} 39. Ba4 {[%clk 0:00:04.9]} 39... bxc5 {[%clk 0:00:12.4]} 40. bxc5
{[%clk 0:00:05.8]} 40... Nxc5 {[%clk 0:00:09.9]} 41. Bxe8 {[%clk 0:00:04.9]}
41... Qxe8 {[%clk 0:00:10.8]} 42. Rc1 {[%clk 0:00:04.4]} 42... Nd3 {[%clk
0:00:10.4]} 43. Rxc8 {[%clk 0:00:04.1]} 43... Qxc8 {[%clk 0:00:11.3]} 44. Qd4
{[%clk 0:00:03.8]} 44... Qc2+ {[%clk 0:00:11]} 45. Kg1 {[%clk 0:00:04.7]} 45...
Qc1+ {[%clk 0:00:07.9]} 46. Kh2 {[%clk 0:00:05.2]} 46... Qb2+ {[%clk 0:00:07.6]}
47. Kg1 {[%clk 0:00:05.3]} 47... Qxd4+ {[%clk 0:00:07.6]} 0-1

[Event "*** Titled Tuesday Blitz"]
[Site "Chess.com"]
[Date "2020.05.12"]
[Round "6"]
[White "Saloni1299"]
[Black "Zubrrr"]
[Result "0-1"]
[WhiteElo "2302"]
[BlackElo "2635"]
[TimeControl "180+1"]
[EndTime "11:06:57 PDT"]
[Termination "Zubrrr won by resignation"]

1. e4 {[%clk 0:03:00.9]} 1... c5 {[%clk 0:02:59.8]} 2. Nf3 {[%clk 0:03:01.2]}
2... d6 {[%clk 0:03:00.2]} 3. d4 {[%clk 0:03:01.3]} 3... cxd4 {[%clk 0:03:01.1]}
4. Nxd4 {[%clk 0:03:02]} 4... Nf6 {[%clk 0:03:01.5]} 5. Nc3 {[%clk 0:03:02.6]}
5... a6 {[%clk 0:03:02]} 6. Be3 {[%clk 0:03:02.6]} 6... e6 {[%clk 0:03:02.2]} 7.
f3 {[%clk 0:03:01.8]} 7... b5 {[%clk 0:03:02.4]} 8. Qd2 {[%clk 0:03:01.8]} 8...
b4 {[%clk 0:03:02.5]} 9. Na4 {[%clk 0:02:59.3]} 9... Nbd7 {[%clk 0:03:02.3]} 10.
O-O-O {[%clk 0:02:58.9]} 10... Qa5 {[%clk 0:02:48.3]} 11. b3 {[%clk 0:02:57.1]}
11... Bb7 {[%clk 0:02:48.5]} 12. a3 {[%clk 0:02:55.9]} 12... d5 {[%clk
0:02:34.8]} 13. e5 {[%clk 0:02:39.6]} 13... Nxe5 {[%clk 0:02:32.6]} 14. Nxe6
{[%clk 0:02:14.1]} 14... fxe6 {[%clk 0:02:32.1]} 15. Bb6 {[%clk 0:02:13.9]}
15... Qxb6 {[%clk 0:02:11]} 16. Nxb6 {[%clk 0:02:14]} 16... Rd8 {[%clk
0:02:10.7]} 17. axb4 {[%clk 0:02:10.5]} 17... Bd6 {[%clk 0:02:08.5]} 18. Kb1
{[%clk 0:01:59.1]} 18... O-O {[%clk 0:02:07.4]} 19. Bd3 {[%clk 0:01:54.6]} 19...
Nxd3 {[%clk 0:01:50.9]} 20. Qxd3 {[%clk 0:01:54]} 20... Bxb4 {[%clk 0:01:48.2]}
21. Qd4 {[%clk 0:01:43.4]} 21... a5 {[%clk 0:01:37.9]} 22. Na4 {[%clk
0:01:36.3]} 22... Rc8 {[%clk 0:01:35.7]} 23. c3 {[%clk 0:01:31.2]} 23... Bd6
{[%clk 0:01:30.1]} 24. Qb6 {[%clk 0:01:31.2]} 24... Bc6 {[%clk 0:01:30.1]} 25.
Nc5 {[%clk 0:01:24.3]} 25... e5 {[%clk 0:01:25.4]} 26. Rhe1 {[%clk 0:01:20.2]}
26... Rfe8 {[%clk 0:01:21]} 27. Nb7 {[%clk 0:01:15.9]} 27... Bf8 {[%clk
0:01:07]} 28. Nxa5 {[%clk 0:01:15.4]} 28... Ba8 {[%clk 0:01:06.9]} 29. Kb2
{[%clk 0:01:04.4]} 29... d4 {[%clk 0:00:48.3]} 30. cxd4 {[%clk 0:01:01.8]} 30...
Nd5 {[%clk 0:00:48.2]} 31. Qa6 {[%clk 0:00:46.8]} 31... Nb4 {[%clk 0:00:47.1]}
32. Qa7 {[%clk 0:00:29.6]} 32... Rc2+ {[%clk 0:00:33.1]} 33. Kb1 {[%clk
0:00:29.6]} 33... e4 {[%clk 0:00:32.1]} 34. Nc4 {[%clk 0:00:18.1]} 34... Rxg2
{[%clk 0:00:19.9]} 35. Qa4 {[%clk 0:00:17.7]} 35... Bc6 {[%clk 0:00:17.3]} 36.
Qa7 {[%clk 0:00:15.8]} 36... Ra8 {[%clk 0:00:16.9]} 37. Qc5 {[%clk 0:00:13]}
37... Bxc5 {[%clk 0:00:15.2]} 38. dxc5 {[%clk 0:00:13.2]} 38... exf3 {[%clk
0:00:14.7]} 39. Ne5 {[%clk 0:00:12.4]} 39... f2 {[%clk 0:00:14]} 40. Rf1 {[%clk
0:00:11.8]} 40... Be4+ {[%clk 0:00:14.2]} 41. Kb2 {[%clk 0:00:10.8]} 41... Rxh2
{[%clk 0:00:13.8]} 42. Kc3 {[%clk 0:00:10.9]} 42... Nc6 {[%clk 0:00:14.1]} 43.
Nxc6 {[%clk 0:00:10.5]} 43... Bxc6 {[%clk 0:00:15]} 44. Rd2 {[%clk 0:00:10.8]}
44... Rf8 {[%clk 0:00:14]} 45. Kc4 {[%clk 0:00:10.8]} 45... Rh4+ {[%clk
0:00:13.3]} 46. Kc3 {[%clk 0:00:10.6]} 46... Rhf4 {[%clk 0:00:13.8]} 47. b4
{[%clk 0:00:08.8]} 47... Bb5 {[%clk 0:00:14.1]} 48. Rfxf2 {[%clk 0:00:09.2]}
48... Rxf2 {[%clk 0:00:14.3]} 49. Rd6 {[%clk 0:00:08.8]} 49... R8f3+ {[%clk
0:00:13.5]} 50. Kd4 {[%clk 0:00:09.4]} 50... Rd3+ {[%clk 0:00:13.7]} 51. Ke5
{[%clk 0:00:09.2]} 51... Re2+ {[%clk 0:00:13.9]} 52. Kf4 {[%clk 0:00:09.3]}
52... Rxd6 {[%clk 0:00:13.4]} 53. cxd6 {[%clk 0:00:10]} 53... Kf7 {[%clk
0:00:13.1]} 0-1

[Event "*** Titled Tuesday Blitz"]
[Site "Chess.com"]
[Date "2020.05.12"]
[Round "6"]
[White "FelixJoseYnojosa"]
[Black "Firouzja2003"]
[Result "0-1"]
[WhiteElo "2626"]
[BlackElo "3150"]
[TimeControl "180+1"]
[EndTime "11:06:58 PDT"]
[Termination "Firouzja2003 won by checkmate"]

1. e4 {[%clk 0:03:00.9]} 1... c5 {[%clk 0:02:58.6]} 2. c3 {[%clk 0:03:01.3]}
2... d5 {[%clk 0:02:56.2]} 3. exd5 {[%clk 0:03:01.9]} 3... Qxd5 {[%clk
0:02:57.1]} 4. d4 {[%clk 0:03:02.7]} 4... Nf6 {[%clk 0:02:56.4]} 5. Nf3 {[%clk
0:03:03.3]} 5... e6 {[%clk 0:02:56]} 6. Be3 {[%clk 0:03:02.9]} 6... cxd4 {[%clk
0:02:54.4]} 7. cxd4 {[%clk 0:03:03.6]} 7... Bb4+ {[%clk 0:02:53.3]} 8. Nc3
{[%clk 0:03:04.3]} 8... O-O {[%clk 0:02:53.3]} 9. Bd3 {[%clk 0:03:04.9]} 9...
Nc6 {[%clk 0:02:49]} 10. O-O {[%clk 0:03:04.9]} 10... Qd8 {[%clk 0:02:48.6]} 11.
Rc1 {[%clk 0:03:04.3]} 11... Ba5 {[%clk 0:02:43.2]} 12. Bb1 {[%clk 0:03:03.5]}
12... Ne7 {[%clk 0:02:39.8]} 13. Ne5 {[%clk 0:03:00.1]} 13... Bb6 {[%clk
0:02:37.1]} 14. Qf3 {[%clk 0:02:55.6]} 14... Nfd5 {[%clk 0:02:17]} 15. Qh3
{[%clk 0:02:39.3]} 15... Ng6 {[%clk 0:02:02.3]} 16. Bxg6 {[%clk 0:02:24]} 16...
hxg6 {[%clk 0:02:01]} 17. Ne4 {[%clk 0:02:23.2]} 17... Bd7 {[%clk 0:01:36.1]}
18. Ng5 {[%clk 0:02:19.8]} 18... Nf6 {[%clk 0:01:36.6]} 19. Ng4 {[%clk
0:01:47.5]} 19... Nh5 {[%clk 0:01:32.7]} 20. Ne5 {[%clk 0:01:37.3]} 20... Rc8
{[%clk 0:01:26]} 21. Rxc8 {[%clk 0:01:33.2]} 21... Bxc8 {[%clk 0:01:22.5]} 22.
Rc1 {[%clk 0:01:24.4]} 22... Bd7 {[%clk 0:01:09.7]} 23. Qf3 {[%clk 0:01:22.6]}
23... Bc6 {[%clk 0:00:53.5]} 24. Nxc6 {[%clk 0:01:19.5]} 24... bxc6 {[%clk
0:00:54.4]} 25. Qxc6 {[%clk 0:01:17.3]} 25... Nf6 {[%clk 0:00:52.7]} 26. h4
{[%clk 0:01:06]} 26... Qb8 {[%clk 0:00:50.7]} 27. Qf3 {[%clk 0:01:00.9]} 27...
Rd8 {[%clk 0:00:45.4]} 28. Bf4 {[%clk 0:00:55]} 28... Qa8 {[%clk 0:00:41.6]} 29.
Qxa8 {[%clk 0:00:53.7]} 29... Rxa8 {[%clk 0:00:42.5]} 30. Nf3 {[%clk 0:00:45.8]}
30... Nd5 {[%clk 0:00:41.9]} 31. Bd6 {[%clk 0:00:37]} 31... f6 {[%clk 0:00:42]}
32. Bc5 {[%clk 0:00:37.2]} 32... Bc7 {[%clk 0:00:42.4]} 33. g3 {[%clk
0:00:35.6]} 33... a5 {[%clk 0:00:42.5]} 34. a3 {[%clk 0:00:35.8]} 34... Rb8
{[%clk 0:00:42.1]} 35. Rc2 {[%clk 0:00:34.1]} 35... Rb3 {[%clk 0:00:33.1]} 36.
Kg2 {[%clk 0:00:33.7]} 36... Kf7 {[%clk 0:00:31.1]} 37. Re2 {[%clk 0:00:28.7]}
37... Rd3 {[%clk 0:00:28.3]} 38. Nd2 {[%clk 0:00:25.2]} 38... a4 {[%clk
0:00:26.9]} 39. Ne4 {[%clk 0:00:21.6]} 39... Rd1 {[%clk 0:00:20.9]} 40. Rc2
{[%clk 0:00:21.2]} 40... Rd3 {[%clk 0:00:18.9]} 41. Rc4 {[%clk 0:00:21.3]} 41...
Rb3 {[%clk 0:00:14.4]} 42. Rxa4 {[%clk 0:00:21.8]} 42... Rxb2 {[%clk 0:00:14.9]}
43. Ra7 {[%clk 0:00:22]} 43... Kg8 {[%clk 0:00:15.3]} 44. a4 {[%clk 0:00:22.2]}
44... Ra2 {[%clk 0:00:14.9]} 45. Kf3 {[%clk 0:00:14.3]} 45... Kh7 {[%clk
0:00:14.1]} 46. Kg2 {[%clk 0:00:14.4]} 46... g5 {[%clk 0:00:13.7]} 47. hxg5
{[%clk 0:00:14.5]} 47... f5 {[%clk 0:00:14.4]} 48. Nd6 {[%clk 0:00:10.9]} 48...
Ne3+ {[%clk 0:00:13.9]} 49. Kf3 {[%clk 0:00:11.3]} 49... Ng4 {[%clk 0:00:14.2]}
50. d5 {[%clk 0:00:10.1]} 50... Bxd6 {[%clk 0:00:14.5]} 51. Bd4 {[%clk
0:00:09.2]} 51... e5 {[%clk 0:00:14.8]} 52. g6+ {[%clk 0:00:08.8]} 52... Kxg6
{[%clk 0:00:14.8]} 53. Ra6 {[%clk 0:00:08.8]} 53... exd4 {[%clk 0:00:15.2]} 54.
Rxd6+ {[%clk 0:00:09.3]} 54... Kg5 {[%clk 0:00:15.9]} 55. Ra6 {[%clk 0:00:09.9]}
55... Rxf2# {[%clk 0:00:16.1]} 0-1

[Event "*** Titled Tuesday Blitz"]
[Site "Chess.com"]
[Date "2020.05.12"]
[Round "6"]
[White "grandemestregringo"]
[Black "Evgeny81"]
[Result "0-1"]
[WhiteElo "2477"]
[BlackElo "2715"]
[TimeControl "180+1"]
[EndTime "11:07:00 PDT"]
[Termination "Evgeny81 won on time"]

1. d4 {[%clk 0:03:00.9]} 1... e6 {[%clk 0:03:00.9]} 2. c4 {[%clk 0:03:00.9]}
2... Nf6 {[%clk 0:02:58.8]} 3. Nf3 {[%clk 0:03:01.5]} 3... Bb4+ {[%clk
0:02:58.8]} 4. Bd2 {[%clk 0:03:01]} 4... Qe7 {[%clk 0:02:58.2]} 5. g3 {[%clk
0:03:00.9]} 5... Bxd2+ {[%clk 0:02:58.3]} 6. Nbxd2 {[%clk 0:02:39.9]} 6... d6
{[%clk 0:02:57.7]} 7. Bg2 {[%clk 0:02:38]} 7... O-O {[%clk 0:02:57.4]} 8. O-O
{[%clk 0:02:38.5]} 8... a5 {[%clk 0:02:55.6]} 9. Rc1 {[%clk 0:02:35.3]} 9... e5
{[%clk 0:02:50.4]} 10. e3 {[%clk 0:02:00.4]} 10... Nc6 {[%clk 0:02:46.1]} 11.
Qc2 {[%clk 0:01:48]} 11... h6 {[%clk 0:02:43.5]} 12. Rfd1 {[%clk 0:01:46.9]}
12... e4 {[%clk 0:02:35.5]} 13. Ne1 {[%clk 0:01:46]} 13... Bf5 {[%clk
0:02:33.3]} 14. Nf1 {[%clk 0:01:35.9]} 14... g5 {[%clk 0:02:21]} 15. f4 {[%clk
0:01:29.5]} 15... exf3 {[%clk 0:01:59.7]} 16. Qxf5 {[%clk 0:01:30.4]} 16... fxg2
{[%clk 0:01:59.5]} 17. Nxg2 {[%clk 0:01:30.1]} 17... Qe6 {[%clk 0:01:57.1]} 18.
Qf3 {[%clk 0:01:20.3]} 18... Qe7 {[%clk 0:01:33.8]} 19. Nd2 {[%clk 0:01:19.7]}
19... Rae8 {[%clk 0:01:32.4]} 20. Rf1 {[%clk 0:01:11.4]} 20... Ne4 {[%clk
0:01:29.5]} 21. Nxe4 {[%clk 0:01:04.7]} 21... Qxe4 {[%clk 0:01:30.4]} 22. Qh5
{[%clk 0:01:05.3]} 22... Kg7 {[%clk 0:01:27.1]} 23. h4 {[%clk 0:01:04.7]} 23...
Qg6 {[%clk 0:01:24.5]} 24. Qxg6+ {[%clk 0:00:26.1]} 24... Kxg6 {[%clk
0:01:25.4]} 25. Kh2 {[%clk 0:00:22.5]} 25... f5 {[%clk 0:01:21.2]} 26. Rf2
{[%clk 0:00:18.7]} 26... Nb4 {[%clk 0:01:17.7]} 27. Ra1 {[%clk 0:00:16.9]} 27...
Re4 {[%clk 0:01:10.5]} 28. a3 {[%clk 0:00:16.1]} 28... Nc6 {[%clk 0:01:10.5]}
29. Raf1 {[%clk 0:00:15.5]} 29... a4 {[%clk 0:01:08.1]} 30. h5+ {[%clk 0:00:15]}
30... Kxh5 {[%clk 0:01:05.9]} 31. Rxf5 {[%clk 0:00:15.9]} 31... Rxf5 {[%clk
0:01:05.6]} 32. Rxf5 {[%clk 0:00:16.8]} 32... Kg6 {[%clk 0:01:05.2]} 33. Rf8
{[%clk 0:00:16.7]} 33... Na5 {[%clk 0:00:57.9]} 34. Rg8+ {[%clk 0:00:13.7]}
34... Kf7 {[%clk 0:00:55.3]} 35. Rc8 {[%clk 0:00:13.7]} 35... c6 {[%clk
0:00:48.9]} 36. Ra8 {[%clk 0:00:10.4]} 36... Nxc4 {[%clk 0:00:47.6]} 37. Ra7
{[%clk 0:00:10.6]} 37... Re7 {[%clk 0:00:45.4]} 38. Rxa4 {[%clk 0:00:10.5]}
38... Nxb2 {[%clk 0:00:42.9]} 39. Rb4 {[%clk 0:00:09.7]} 39... Nd3 {[%clk
0:00:42.1]} 40. Rb3 {[%clk 0:00:09.7]} 40... Nf2 {[%clk 0:00:41.7]} 41. Kg1
{[%clk 0:00:08.5]} 41... Ne4 {[%clk 0:00:41.7]} 42. Ne1 {[%clk 0:00:08.8]} 42...
Nxg3 {[%clk 0:00:40.2]} 43. Kf2 {[%clk 0:00:08.3]} 43... Ne4+ {[%clk 0:00:40.1]}
44. Ke2 {[%clk 0:00:08.5]} 44... b5 {[%clk 0:00:40.4]} 45. Nd3 {[%clk
0:00:07.5]} 45... h5 {[%clk 0:00:40.6]} 46. d5 {[%clk 0:00:07.9]} 46... c5
{[%clk 0:00:38.2]} 47. Ne1 {[%clk 0:00:05]} 47... c4 {[%clk 0:00:37]} 48. Rb4
{[%clk 0:00:05.5]} 48... Ra7 {[%clk 0:00:35.3]} 49. Nc2 {[%clk 0:00:05.3]} 49...
h4 {[%clk 0:00:34]} 50. Kf3 {[%clk 0:00:04.5]} 50... Nf6 {[%clk 0:00:33]} 51.
Rxb5 {[%clk 0:00:04.5]} 51... g4+ {[%clk 0:00:33.3]} 52. Kf4 {[%clk 0:00:04.7]}
52... h3 {[%clk 0:00:30.4]} 53. Kg3 {[%clk 0:00:05]} 53... Re7 {[%clk
0:00:30.3]} 54. Rb1 {[%clk 0:00:03.8]} 54... Kg6 {[%clk 0:00:28.8]} 55. a4
{[%clk 0:00:03.7]} 55... Kg5 {[%clk 0:00:28]} 56. a5 {[%clk 0:00:03.9]} 56...
Ne4+ {[%clk 0:00:28]} 57. Kh2 {[%clk 0:00:03.9]} 57... Kh4 {[%clk 0:00:27.8]}
58. a6 {[%clk 0:00:03.9]} 58... g3+ {[%clk 0:00:28.1]} 59. Kg1 {[%clk
0:00:04.4]} 59... Nd2 {[%clk 0:00:26.8]} 0-1